fUSD/lending_fUSD_20240422
["ID","MTS","AMOUNT","RATE_DAILY","PERIOD"]
[323223187,1713817992527,-2293.72,0.00016712,2]
[323223188,1713817992536,-1265.46,0.00016712,2]
[323223189,1713817992546,-561.76,0.00016712,2]
[323223190,1713817992556,-190.36050992,0.00016712,2]
[323223191,1713817992567,-648.54,0.00016712,2]
[323223192,1713817992577,-754.54,0.00016712,2]
[323223193,1713817992586,-1423.76,0.00016712,2]
[323223194,1713817992595,-766.12,0.00016712,2]
[323223195,1713817992604,-1066.26,0.00016712,2]
[323223196,1713817992614,-730.36,0.00016712,2]
[323223197,1713817992623,-1476.18,0.00016712,2]
[323223198,1713817992632,-630.54,0.00016712,2]
[323223199,1713817992643,-1555.08,0.00016712,2]
[323223200,1713817992652,-1064.89,0.00016712,2]
[323223201,1713817992662,-1952.11,0.00016712,2]
[323223202,1713817992672,-909.66,0.00016712,2]
[323223203,1713817992681,-500.0,0.00016712,2]
[323223204,1713817992691,-801.08,0.00016712,2]
[323223205,1713817992700,-2542.4,0.00016712,2]
[323223206,1713817992710,-1323.06,0.00016712,2]
[323223207,1713817992720,-580.66,0.00016712,2]
[323223208,1713817992731,-1009.86,0.00016712,2]
[323223209,1713817992741,-996.9,0.00016712,2]
[323223210,1713817992750,-685.24,0.00016712,2]
[323223211,1713817992760,-751.49,0.00016712,2]
[323223212,1713817992769,-1254.19,0.00016712,2]
[323223213,1713817992779,-860.39,0.00016712,2]
[323223214,1713817992790,-4409.84,0.00016712,2]
[323223215,1713817992799,-513.13,0.00016712,2]
[323223216,1713817992810,-605.11,0.00016712,2]
[323223217,1713817992819,-1437.23,0.00016712,2]
[323223218,1713817992829,-1024.83,0.00016712,2]
[323223219,1713817992839,-794.18,0.00016712,2]
[323223220,1713817992849,-1182.95,0.00016712,2]
[323223221,1713817992859,-1314.8,0.00016712,2]
[323223222,1713817992869,-500.0,0.00016712,2]
[323223223,1713817992880,-1869.66,0.00016712,2]
[323223224,1713817992890,-983.81,0.00016712,2]
[323223225,1713817992901,-914.73,0.00016712,2]
[323223226,1713817992910,-876.01,0.00016712,2]
[323223227,1713817992920,-500.0,0.00016712,2]
[323223228,1713817992930,-878.84,0.00016712,2]
[323223229,1713817992942,-541.31,0.00016712,2]
[323223230,1713817992952,-894.0,0.00016712,2]
[323223231,1713817992962,-2061.61,0.00016712,2]
[323223232,1713817992974,-1124.13,0.00016712,2]
[323223233,1713817992984,-1403.67,0.00016712,2]
[323223234,1713817992993,-1325.09,0.00016712,2]
[323223235,1713817993013,-775.89,0.00016712,2]
[323223236,1713817993028,-1211.22,0.00016712,2]
[323223237,1713817993040,-1196.82,0.00016712,2]
[323223238,1713817993050,-1451.51,0.00016712,2]
[323223239,1713817993061,-1680.65,0.00016712,2]
[323223240,1713817993070,-1636.05,0.00016712,2]
[323223241,1713817993080,-922.47,0.00016712,2]
[323223242,1713817993089,-500.0,0.00016712,2]
[323223243,1713817993098,-725.28,0.00016712,2]
[323223244,1713817993107,-816.4,0.00016712,2]
[323223245,1713817993117,-500.0,0.00016712,2]
[323223246,1713817993126,-500.0,0.00016712,2]
[323223247,1713817993135,-526.67,0.00016712,2]
[323223248,1713817993145,-754.42,0.00016712,2]
[323223249,1713817993156,-1131.8,0.00016712,2]
[323223250,1713817993166,-1402.5,0.00016712,2]
[323223251,1713817993176,-500.0,0.00016712,2]
[323223252,1713817993186,-532.25,0.00016712,2]
[323223253,1713817993195,-787.9,0.00016712,2]
[323223254,1713817993205,-559.84,0.00016712,2]
[323223255,1713817993215,-1069.11,0.00016712,2]
[323223256,1713817993225,-1256.58,0.00016712,2]
[323223257,1713817993235,-628.34,0.00016712,2]
[323223258,1713817993245,-500.0,0.00016712,2]
[323223259,1713817993255,-624.97,0.00016712,2]
[323223260,1713817993265,-349.84866205,0.00016712,2]
[323223261,1713817993275,-1806.23,0.00016712,2]
[323223262,1713817993285,-1450.35,0.00016712,2]
[323223263,1713817993294,-1359.54,0.00016712,2]
[323223264,1713817993304,-500.0,0.00016712,2]
[323223265,1713817993313,-502.81,0.00016712,2]
[323223266,1713817993322,-1191.78,0.00016712,2]
[323223267,1713817993332,-888.12,0.00016712,2]
[323223268,1713817993342,-578.9,0.00016712,2]
[323223269,1713817993352,-1855.61,0.00016712,2]
[323223270,1713817993362,-583.38,0.00016712,2]
[323223271,1713817993372,-500.0,0.00016712,2]
[323223272,1713817993382,-1313.44,0.00016712,2]
[323223273,1713817993393,-1448.43,0.00016712,2]
[323223274,1713817993402,-500.0,0.00016712,2]
[323223275,1713817993413,-500.0,0.00016712,2]
[323223276,1713817993423,-500.0,0.00016712,2]
[323223277,1713817993433,-1028.72,0.00016712,2]
[323223278,1713817993443,-595.0,0.00016712,2]
[323223279,1713817993454,-547.89,0.00016712,2]
[323223280,1713817993464,-500.0,0.00016712,2]
[323223281,1713817993475,-1641.26,0.00016712,2]
[323223282,1713817993487,-1768.32,0.00016712,2]
[323223283,1713817993497,-500.0,0.00016712,2]
[323223284,1713817993508,-3339.2,0.00016712,2]
[323223285,1713817993521,-668.1,0.00016712,2]
[323223286,1713817993533,-863.77,0.00016712,2]
[323223287,1713817993543,-1124.07,0.00016712,2]
[323223288,1713817993554,-500.0,0.00016712,2]
[323223289,1713817993563,-557.13,0.00016712,2]
[323223290,1713817993574,-500.0,0.00016712,2]
[323223291,1713817993584,-562.12,0.00016712,2]
[323223292,1713817993593,-840.96,0.00016712,2]
[323223293,1713817993603,-816.6,0.00016712,2]
[323223294,1713817993613,-500.0,0.00016712,2]
[323223295,1713817993623,-811.15,0.00016712,2]
[323223296,1713817993635,-1876.65,0.00016712,2]
[323223297,1713817993646,-1275.39,0.00016712,2]
[323223298,1713817993656,-608.19006211,0.00016712,2]
[323223299,1713817993666,-1190.54,0.00016712,2]
[323223300,1713817993675,-1082.13,0.00016712,2]
[323223301,1713817993686,-1247.63,0.00016712,2]
[323223302,1713817993695,-754.66,0.00016712,2]
[323223303,1713817993706,-2584.59,0.00016712,2]
[323223304,1713817993715,-3329.52,0.00016712,2]
[323223305,1713817993727,-1169.33,0.00016712,2]
[323223306,1713817993737,-579.73301795,0.00016712,2]
[323223307,1713817993747,-621.96,0.00016712,2]
[323223308,1713817993756,-500.0,0.00016712,2]
[323223309,1713817993766,-845.41,0.00016712,2]
[323223310,1713817993776,-755.77,0.00016712,2]
[323223311,1713817993786,-973.92,0.00016712,2]
[323223312,1713817993795,-1019.33,0.00016712,2]
[323223313,1713817993805,-549.92,0.00016712,2]
[323223314,1713817993815,-500.0,0.00016712,2]
[323223315,1713817993826,-500.0,0.00016712,2]
[323223316,1713817993836,-1233.41,0.00016712,2]
[323223317,1713817993846,-524.29,0.00016712,2]
[323223318,1713817993857,-730.26,0.00016712,2]
[323223319,1713817993880,-1250.58,0.00016712,2]
[323223320,1713817993898,-549.81659169,0.00016712,2]
[323223321,1713817993911,-2886.05,0.00016712,2]
[323223322,1713817993921,-590.06,0.00016712,2]
[323223323,1713817993931,-500.0,0.00016712,2]
[323223324,1713817993941,-1827.41,0.00016712,2]
[323223325,1713817993951,-744.02,0.00016712,2]
[323223326,1713817993961,-1751.5,0.00016712,2]
[323223327,1713817993971,-500.0,0.00016712,2]
[323223328,1713817993981,-1503.69,0.00016712,2]
[323223329,1713817993991,-293.81856386,0.00016712,2]
[323223330,1713817994001,-1054.98,0.00016712,2]
[323223331,1713817994010,-500.0,0.00016712,2]
[323223332,1713817994020,-527.77,0.00016712,2]
[323223333,1713817994029,-1757.63,0.00016712,2]
[323223334,1713817994039,-1390.28,0.00016712,2]
[323223335,1713817994049,-543.73,0.00016712,2]
[323223336,1713817994059,-800.72,0.00016712,2]
[323223337,1713817994069,-560.39,0.00016712,2]
[323223338,1713817994079,-710.37,0.00016712,2]
[323223339,1713817994089,-8671.29,0.00016712,2]
[323223340,1713817994098,-2737.44,0.00016712,2]
[323223341,1713817994108,-991.82,0.00016712,2]
[323223342,1713817994117,-500.0,0.00016712,2]
[323223343,1713817994126,-1220.79,0.00016712,2]
[323223344,1713817994136,-500.0,0.00016712,2]
[323223345,1713817994146,-3731.89,0.00016712,2]
[323223346,1713817994156,-4012.68,0.00016712,2]
[323223347,1713817994165,-1170.18,0.00016712,2]
[323223348,1713817994175,-1044.89,0.00016712,2]
[323223349,1713817994185,-1190.98,0.00016712,2]
[323223350,1713817994194,-773.35,0.00016712,2]
[323223351,1713817994205,-12096.17,0.00016712,2]
[323223352,1713817994214,-1727.84,0.00016712,2]
[323223353,1713817994223,-508.4,0.00016712,2]
[323223354,1713817994494,-938.55,0.00016712,2]
[323223355,1713817994505,-20433.91,0.00016712,2]
[323223356,1713817994515,-1147.24,0.00016712,2]
[323223357,1713817994525,-1529.34,0.00016712,2]
[323223358,1713817994536,-4437.11,0.00016712,2]
[323223359,1713817994546,-3682.04,0.00016712,2]
[323223360,1713817994558,-1045.51,0.00016712,2]
[323223361,1713817994569,-502.61,0.00016712,2]
[323223362,1713817994581,-4397.02,0.00016712,2]
[323223363,1713817994590,-2939.82,0.00016712,2]
[323223364,1713817994599,-4066.35,0.00016712,2]
[323223365,1713817994608,-500.0,0.00016712,2]
[323223366,1713817994619,-9104.68,0.00016712,2]
[323223367,1713817994629,-2694.54,0.00016712,2]
[323223368,1713817994639,-606.84,0.00016712,2]
[323223369,1713817994649,-675.73,0.00016712,2]
[323223370,1713817994658,-13312.5,0.00016712,2]
[323223371,1713817994667,-1227.83,0.00016712,2]
[323223372,1713817994677,-843.14,0.00016712,2]
[323223373,1713817994687,-4924.18,0.00016712,2]
[323223374,1713817994697,-500.0,0.00016712,2]
[323223375,1713817994707,-752.32,0.00016712,2]
[323223376,1713817994716,-2295.67,0.00016712,2]
[323223377,1713817994727,-1329.4,0.00016712,2]
[323223378,1713817994737,-500.0,0.00016712,2]
[323223379,1713817994747,-19623.04,0.00016712,2]
[323223380,1713817994757,-696.75,0.00016712,2]
[323223381,1713817994768,-4571.21,0.00016712,2]
[323223382,1713817994777,-1065.73,0.00016712,2]
[323223383,1713817994787,-8822.49,0.00016712,2]
[323223384,1713817994797,-4272.21,0.00016712,2]
[323223385,1713817994808,-2754.05,0.00016712,2]
[323223386,1713817994818,-2238.45,0.00016712,2]
[323223387,1713817994828,-500.0,0.00016712,2]
[323223388,1713817994838,-1968.05,0.00016712,2]
[323223389,1713817994846,-17508.63,0.00016712,2]
[323223390,1713817994856,-5023.5,0.00016712,2]
[323223391,1713817994867,-975.21,0.00016712,2]
[323223392,1713817994877,-1827.86,0.00016712,2]
[323223393,1713817994888,-5213.97,0.00016712,2]
[323223394,1713817994898,-5798.87,0.00016712,2]
[323223395,1713817994909,-4518.5,0.00016712,2]
[323223396,1713817994919,-3464.58,0.00016712,2]
[323223397,1713817994929,-1356.45,0.00016712,2]
[323223398,1713817994939,-533.11,0.00016712,2]
[323223399,1713817994949,-7647.7,0.00016712,2]
[323223400,1713817994960,-980.74,0.00016712,2]
[323223401,1713817994971,-500.0,0.00016712,2]
[323223402,1713817994982,-866.39,0.00016712,2]
[323223403,1713817994993,-6333.04,0.00016712,2]
[323223404,1713817995003,-1130.77,0.00016712,2]
[323223405,1713817995014,-1424.13,0.00016712,2]
[323223406,1713817995024,-1043.08,0.00016712,2]
[323223407,1713817995034,-500.0,0.00016712,2]
[323223408,1713817995044,-4957.21,0.00016712,2]
[323223409,1713817995056,-972.86,0.00016712,2]
[323223410,1713817995065,-17087.41,0.00016712,2]
[323223411,1713817995075,-1902.61,0.00016712,2]
[323223412,1713817995085,-2426.59,0.00016712,2]
[323223413,1713817995095,-4288.29,0.00016712,2]
[323223414,1713817995105,-1173.49,0.00016712,2]
[323223415,1713817995115,-8918.06,0.00016712,2]
[323223416,1713817995126,-8646.75,0.00016712,2]
[323223417,1713817995136,-500.0,0.00016712,2]
[323223418,1713817995146,-663.73,0.00016712,2]
[323223419,1713817995155,-5848.77,0.00016712,2]
[323223420,1713817995165,-500.0,0.00016712,2]
[323223421,1713817995176,-14690.22,0.00016712,2]
[323223422,1713817995186,-1312.73,0.00016712,2]
[323223423,1713817995197,-506.74,0.00016712,2]
[323223424,1713817995208,-2234.61,0.00016712,2]
[323223425,1713817995219,-648.66,0.00016712,2]
[323223426,1713817995229,-10938.94,0.00016712,2]
[323223427,1713817995240,-500.0,0.00016712,2]
[323223428,1713817995250,-1962.25,0.00016712,2]
[323223429,1713817995260,-2886.61,0.00016712,2]
[323223430,1713817995270,-579.41,0.00016712,2]
[323223431,1713817995279,-1997.87,0.00016712,2]
[323223432,1713817995289,-500.0,0.00016712,2]
[323223433,1713817995299,-53885.3,0.00016712,2]
[323223434,1713817995310,-1244.34,0.00016712,2]
[323223435,1713817995320,-4051.64,0.00016712,2]
[323223436,1713817995329,-1590.37,0.00016712,2]
[323223437,1713817995340,-7669.72,0.00016712,2]
[323223438,1713817995349,-2236.17,0.00016712,2]
[323223439,1713817995359,-2521.35,0.00016712,2]
[323223440,1713817995369,-1645.21,0.00016712,2]
[323223441,1713817995378,-1343.13,0.00016712,2]
[323223442,1713817995388,-1510.42,0.00016712,2]
[323223443,1713817995398,-1028.46,0.00016712,2]
[323223444,1713817995407,-5067.75,0.00016712,2]
[323223445,1713817995417,-803.65,0.00016712,2]
[323223446,1713817995428,-1544.16,0.00016712,2]
[323223447,1713817995438,-754.93,0.00016712,2]
[323223448,1713817995447,-26471.53,0.00016712,2]
[323223449,1713817995456,-1051.95,0.00016712,2]
[323223450,1713817995466,-1582.45,0.00016712,2]
[323223451,1713817995475,-11812.41,0.00016712,2]
[323223452,1713817995485,-1393.84,0.00016712,2]
[323223453,1713817995496,-807.31,0.00016712,2]
[323223454,1713817995506,-1564.41,0.00016712,2]
[323223455,1713817995516,-500.0,0.00016712,2]
[323223456,1713817995525,-3864.45,0.00016712,2]
[323223457,1713817995536,-3718.52,0.00016712,2]
[323223458,1713817995545,-500.0,0.00016712,2]
[323223459,1713817995556,-5811.41,0.00016712,2]
[323223460,1713817995566,-500.0,0.00016712,2]
[323223461,1713817995575,-6037.29,0.00016712,2]
[323223462,1713817995585,-1502.85,0.00016712,2]
[323223463,1713817995595,-2889.09,0.00016712,2]
[323223464,1713817995605,-6389.88,0.00016712,2]
[323223465,1713817995615,-669.89,0.00016712,2]
[323223466,1713817995624,-500.0,0.00016712,2]
[323223467,1713817995634,-500.0,0.00016712,2]
[323223468,1713817995644,-1991.04,0.00016712,2]
[323223469,1713817995653,-5057.75,0.00016712,2]
[323223470,1713817995663,-2149.82,0.00016712,2]
[323223471,1713817995673,-610.24,0.00016712,2]
[323223472,1713817995684,-2095.61,0.00016712,2]
[323223473,1713817995694,-500.0,0.00016712,2]
[323223474,1713817995704,-2535.93,0.00016712,2]
[323223475,1713817995713,-500.0,0.00016712,2]
[323223476,1713817995723,-558.4,0.00016712,2]
[323223477,1713817995733,-9434.59,0.00016712,2]
[323223478,1713817995743,-1851.7,0.00016712,2]
[323223479,1713817995753,-1148.52,0.00016712,2]
[323223480,1713817995763,-2751.02,0.00016712,2]
[323223481,1713817995774,-500.0,0.00016712,2]
[323223482,1713817995783,-2872.2,0.00016712,2]
[323223483,1713817995793,-560.07,0.00016712,2]
[323223484,1713817995804,-2848.87,0.00016712,2]
[323223485,1713817995814,-500.0,0.00016712,2]
[323223486,1713817995825,-4572.48,0.00016712,2]
[323223487,1713817995836,-12108.08,0.00016712,2]
[323223488,1713817995846,-6735.46,0.00016712,2]
[323223489,1713817995856,-4162.92,0.00016712,2]
[323223490,1713817995866,-2605.69,0.00016712,2]
[323223491,1713817995876,-505.78,0.00016712,2]
[323223492,1713817995887,-1139.18,0.00016712,2]
[323223493,1713817995898,-4970.85,0.00016712,2]
[323223494,1713817995907,-5993.52,0.00016712,2]
[323223495,1713817995917,-4558.05,0.00016712,2]
[323223496,1713817995928,-2320.73,0.00016712,2]
[323223497,1713817995938,-38504.87,0.00016712,2]
[323223498,1713817995948,-2509.82,0.00016712,2]
[323223499,1713817995958,-4258.45,0.00016712,2]
[323223500,1713817995970,-782.97,0.00016712,2]
[323223501,1713817995979,-1377.87,0.00016712,2]
[323223502,1713817995990,-500.0,0.00016712,2]
[323223503,1713817995999,-2445.43,0.00016712,2]
[323223504,1713817996009,-844.44,0.00016712,2]
[323223505,1713817996020,-1194.19,0.00016712,2]
[323223506,1713817996031,-4269.95,0.00016712,2]
[323223507,1713817996041,-1360.06,0.00016712,2]
[323223508,1713817996050,-535.38,0.00016712,2]
[323223509,1713817996061,-1464.57,0.00016712,2]
[323223510,1713817996071,-519.11,0.00016712,2]
[323223511,1713817996081,-2389.58,0.00016712,2]
[323223512,1713817996090,-4846.13,0.00016712,2]
[323223513,1713817996100,-2486.12,0.00016712,2]
[323223514,1713817996110,-500.0,0.00016712,2]
[323223515,1713817996119,-1059.02,0.00016712,2]
[323223516,1713817996129,-4078.34,0.00016712,2]
[323223517,1713817996139,-9091.85,0.00016712,2]
[323223518,1713817996149,-5188.48,0.00016712,2]
[323223519,1713817996159,-1379.16,0.00016712,2]
[323223520,1713817996170,-3772.2,0.00016712,2]
[323223521,1713817996181,-3845.3,0.00016712,2]
[323223522,1713817996190,-2377.01,0.00016712,2]
[323223523,1713817996201,-3089.82,0.00016712,2]
[323223524,1713817996210,-11616.79,0.00016712,2]
[323223525,1713817996220,-500.0,0.00016712,2]
[323223526,1713817996229,-1036.73,0.00016712,2]
[323223527,1713817996239,-894.91,0.00016712,2]
[323223528,1713817996249,-519.63,0.00016712,2]
[323223529,1713817996259,-500.0,0.00016712,2]
[323223530,1713817996270,-3283.29,0.00016712,2]
[323223531,1713817996280,-574.54,0.00016712,2]
[323223532,1713817996290,-6142.2,0.00016712,2]
[323223533,1713817996300,-7530.97,0.00016712,2]
[323223534,1713817996310,-3119.61,0.00016712,2]
[323223535,1713817996319,-1052.32,0.00016712,2]
[323223536,1713817996329,-8074.97,0.00016712,2]
[323223537,1713817996338,-1615.52,0.00016712,2]
[323223538,1713817996348,-1654.01,0.00016712,2]
[323223539,1713817996358,-2299.35,0.00016712,2]
[323223540,1713817996368,-4170.98,0.00016712,2]
[323223541,1713817996378,-468.56,0.00016712,2]
[323223542,1713817996387,-841.29,0.00016712,2]
[323223543,1713817996397,-9718.3,0.00016712,2]
[323223544,1713817996406,-1294.69,0.00016712,2]
[323223545,1713817996416,-580.64,0.00016712,2]
[323223546,1713817996425,-2541.75,0.00016712,2]
[323223547,1713817996435,-500.0,0.00016712,2]
[323223548,1713817996445,-555.29,0.00016712,2]
[323223549,1713817996455,-2729.9,0.00016712,2]
[323223550,1713817996465,-2620.59,0.00016712,2]
[323223551,1713817996474,-1646.2,0.00016712,2]
[323223552,1713817996484,-3612.79,0.00016712,2]
[323223553,1713817996494,-3159.44,0.00016712,2]
[323223554,1713817996504,-5252.04,0.00016712,2]
[323223555,1713817996513,-500.0,0.00016712,2]
[323223556,1713817996523,-500.0,0.00016712,2]
[323223557,1713817996533,-180.71717418,0.00016712,2]
[323223558,1713817996542,-1523.59,0.00016712,2]
[323223559,1713817996551,-608.44,0.00016712,2]
[323223560,1713817996562,-13095.85,0.00016712,2]
[323223561,1713817996571,-5833.37,0.00016712,2]
[323223562,1713817996581,-6897.16,0.00016712,2]
[323223563,1713817996591,-6152.13,0.00016712,2]
[323223564,1713817996600,-1238.36,0.00016712,2]
[323223565,1713817996611,-3299.3,0.00016712,2]
[323223566,1713817996621,-13435.6,0.00016712,2]
[323223567,1713817996631,-943.08,0.00016712,2]
[323223568,1713817996641,-432.08239492,0.00016712,2]
[323223569,1713817996651,-3819.44,0.00016712,2]
[323223570,1713817996661,-1406.96,0.00016712,2]
[323223571,1713817996670,-769.83,0.00016712,2]
[323223572,1713817996681,-500.0,0.00016712,2]
[323223573,1713817996690,-722.61,0.00016712,2]
[323223574,1713817996700,-930.5,0.00016712,2]
[323223575,1713817996709,-500.0,0.00016712,2]
[323223576,1713817996719,-780.85,0.00016712,2]
[323223577,1713817996729,-2367.11,0.00016712,2]
[323223578,1713817996740,-1025.63,0.00016712,2]
[323223579,1713817996750,-7256.26,0.00016712,2]
[323223580,1713817996760,-10754.04,0.00016712,2]
[323223581,1713817996770,-500.0,0.00016712,2]
[323223582,1713817996780,-634.73,0.00016712,2]
[323223583,1713817996790,-500.0,0.00016712,2]
[323223584,1713817996799,-500.0,0.00016712,2]
[323223585,1713817996810,-2911.37,0.00016712,2]
[323223586,1713817996820,-530.36,0.00016712,2]
[323223587,1713817996829,-6189.49,0.00016712,2]
[323223588,1713817996839,-943.08,0.00016712,2]
[323223589,1713817996848,-4556.59,0.00016712,2]
[323223590,1713817996858,-523.92,0.00016712,2]
[323223591,1713817996867,-1833.33,0.00016712,2]
[323223592,1713817996877,-1392.71,0.00016712,2]
[323223593,1713817996889,-664.1,0.00016712,2]
[323223594,1713817996900,-1487.75,0.00016712,2]
[323223595,1713817996910,-500.0,0.00016712,2]
[323223596,1713817996919,-4694.74,0.00016712,2]
[323223597,1713817996930,-1874.89,0.00016712,2]
[323223598,1713817996939,-1392.18,0.00016712,2]
[323223599,1713817996949,-819.7,0.00016712,2]
[323223600,1713817996960,-3597.55,0.00016712,2]
[323223601,1713817996970,-806.58,0.00016712,2]
[323223602,1713817996980,-3150.13,0.00016712,2]
[323223603,1713817996989,-1514.8,0.00016712,2]
[323223604,1713817997121,-702.44,0.00016712,2]
[323223605,1713817997131,-500.0,0.00016712,2]
[323223606,1713817997141,-1715.22,0.00016712,2]
[323223607,1713817997151,-1604.37,0.00016712,2]
[323223608,1713817997161,-1853.0,0.00016712,2]
[323223609,1713817997170,-500.0,0.00016712,2]
[323223610,1713817997181,-178.59,0.00016712,2]
[323223611,1713817997190,-1000.0,0.00016786,2]
[323223612,1713817997199,-130615.81298201,0.000168,6]
[323223613,1713817997209,-100570.85013194,0.000168,6]
[323223614,1713817997218,-2540.91199305,0.000168,2]
[323223615,1713817997231,-1000.0,0.00016928,2]
[323223616,1713817997240,-331.0,0.0001697,2]
[323223617,1713817997250,-162.0,0.0001698,2]
[323223618,1713817997260,-500.0,0.00016986,2]
[323223619,1713817997270,-1058.97,0.00016986,2]
[323223620,1713817997280,-500.0,0.00016986,2]
[323223621,1713817997289,-613.72,0.00016986,2]
[323223622,1713817997299,-540.41,0.00016986,2]
[323223623,1713817997310,-500.0,0.00016986,2]
[323223624,1713817997320,-500.0,0.00016986,2]
[323223625,1713817997330,-1669.03,0.00016986,2]
[323223626,1713817997340,-1371.14,0.00016986,2]
[323223627,1713817997350,-500.0,0.00016986,2]
[323223628,1713817997362,-776.94,0.00016986,2]
[323223629,1713817997371,-500.0,0.00016986,2]
[323223630,1713817997380,-587.95,0.00016986,2]
[323223631,1713817997390,-1126.73,0.00016986,2]
[323223632,1713817997400,-1027.81,0.00016986,2]
[323223633,1713817997409,-895.63,0.00016986,2]
[323223634,1713817997418,-500.0,0.00016986,2]
[323223635,1713817997428,-560.73,0.00016986,2]
[323223636,1713817997438,-500.0,0.00016986,2]
[323223637,1713817997447,-541.08,0.00016986,2]
[323223638,1713817997457,-500.0,0.00016986,2]
[323223639,1713817997467,-706.11,0.00016986,2]
[323223640,1713817997476,-629.02,0.00016986,2]
[323223641,1713817997486,-584.95,0.00016986,2]
[323223642,1713817997495,-1117.61,0.00016986,2]
[323223643,1713817997506,-500.0,0.00016986,2]
[323223644,1713817997515,-1070.74,0.00016986,2]
[323223645,1713817997525,-1292.86,0.00016986,2]
[323223646,1713817997534,-1409.26,0.00016986,2]
[323223647,1713817997544,-895.28,0.00016986,2]
[323223648,1713817997553,-627.63,0.00016986,2]
[323223649,1713817997568,-1508.56,0.00016986,2]
[323223650,1713817997577,-632.96,0.00016986,2]
[323223651,1713817997586,-500.0,0.00016986,2]
[323223652,1713817997596,-1031.2,0.00016986,2]
[323223653,1713817997606,-500.0,0.00016986,2]
[323223654,1713817997615,-500.0,0.00016986,2]
[323223655,1713817997624,-718.9,0.00016986,2]
[323223656,1713817997633,-969.56,0.00016986,2]
[323223657,1713817997641,-500.0,0.00016986,2]
[323223658,1713817997650,-500.0,0.00016986,2]
[323223659,1713817997659,-500.0,0.00016986,2]
[323223660,1713817997669,-1375.45,0.00016986,2]
[323223661,1713817997679,-643.12,0.00016986,2]
[323223662,1713817997689,-1338.67,0.00016986,2]
[323223663,1713817997698,-1299.86,0.00016986,2]
[323223664,1713817997707,-1086.66,0.00016986,2]
[323223665,1713817997717,-1120.16,0.00016986,2]
[323223666,1713817997726,-960.06,0.00016986,2]
[323223667,1713817997736,-500.0,0.00016986,2]
[323223668,1713817997746,-534.21,0.00016986,2]
[323223669,1713817997755,-753.19,0.00016986,2]
[323223670,1713817997764,-500.0,0.00016986,2]
[323223671,1713817997774,-811.84,0.00016986,2]
[323223672,1713817997783,-500.0,0.00016986,2]
[323223673,1713817997792,-1092.53,0.00016986,2]
[323223674,1713817997802,-546.54,0.00016986,2]
[323223675,1713817997815,-1749.53,0.00016986,2]
[323223676,1713817997825,-563.34,0.00016986,2]
[323223677,1713817997834,-500.0,0.00016986,2]
[323223678,1713817997844,-1083.17,0.00016986,2]
[323223679,1713817997853,-953.67,0.00016986,2]
[323223680,1713817997863,-171.15646867,0.00016986,2]
[323223681,1713817997872,-500.0,0.00016986,2]
[323223682,1713817997882,-1474.11,0.00016986,2]
[323223683,1713817997894,-1939.69,0.00016986,2]
[323223684,1713817997904,-1150.37,0.00016986,2]
[323223685,1713817997913,-500.0,0.00016986,2]
[323223686,1713817997923,-1191.57,0.00016986,2]